lending/lending_fUSD_20251022
["ID","MTS","AMOUNT","RATE_DAILY","PERIOD"]
[392044992,1761118244570,-166.66,0.00032335,30]
[392044993,1761118244579,-150.0,0.00032378,7]
[392044994,1761118244588,-500.0,0.00032665,7]
[392044995,1761118244598,-500.0,0.00032665,7]
[392044996,1761118244609,-646.46971603,0.00032665,7]
[392045043,1761118246850,-53.53028397,0.00032665,7]
[392045044,1761118246859,-151.0,0.00032877,120]
[392045045,1761118246872,-153.0,0.00032913,90]
[392045046,1761118246881,-166.66,0.00032988,30]
[392045047,1761118246891,-2307.34828108,0.00033,2]
[392045048,1761118246900,-165.2342622,0.00033,120]
[392045049,1761118246909,-1856.80686694,0.00033,120]
[392045050,1761118246919,-161.953396,0.00033299,14]
[392045051,1761118246928,-937.825838,0.0003332,20]
[392045052,1761118246937,-892.09175367,0.00033433,2]
[392045059,1761118274316,240.76,0.00013699,2]
[392045107,1761119117808,10050.573073,0.00015,30]
[392045108,1761119117853,9949.426927,0.00015,30]
[392045115,1761119431567,-209.77,0.00016447,2]
[392045116,1761119431576,-209.77,0.00017313,2]
[392045117,1761119431586,-209.77,0.00018178,2]
[392045118,1761119431595,-209.77,0.00019044,2]
[392045119,1761119431605,-160.0,0.00019357,2]
[392045120,1761119431615,-168.05782121,0.00019865,2]
[392045121,1761119431624,-209.77,0.0001991,2]
[392045122,1761119431633,-240.76,0.00020187,2]
[392045123,1761119431643,-209.77,0.00020775,2]
[392045124,1761119431652,-209.77,0.00021641,2]
[392045125,1761119431662,-301.0,0.00022,7]
[392045126,1761119431671,-209.77,0.00022507,2]
[392045127,1761119431680,-209.77,0.00023372,2]
[392045128,1761119431690,-209.77,0.00024238,2]
[392045129,1761119431699,-209.77,0.00025103,2]
[392045130,1761119431708,-5513.0,0.000258,5]
[392045131,1761119431717,-209.77,0.00025969,2]
[392045132,1761119431727,-240.76,0.00026676,2]
[392045133,1761119431737,-209.77,0.00026835,2]
[392045134,1761119431752,-157.42,0.00027608,2]
[392045135,1761119431762,-209.77,0.000277,2]
[392045136,1761119431771,-209.77,0.00028566,2]
[392045137,1761119431780,-209.77,0.00029432,2]
[392045138,1761119431790,-500.0,0.00029679,7]
[392045139,1761119431799,-500.0,0.00029679,7]
[392045140,1761119431808,-700.0,0.00029679,7]
[392045141,1761119431817,-239.0,0.00029705,2]
[392045142,1761119431827,-600.0,0.00029793,2]
[392045143,1761119431836,-239.0,0.00029793,2]
[392045144,1761119431846,-242.0,0.00030041,2]
[392045145,1761119431855,-200.0,0.00030137,120]
[392045146,1761119431864,-815.393,0.00030158,25]
[392045147,1761119431874,-239.0,0.00030158,2]
[392045148,1761119431883,-1878.0,0.00030181,2]
[392045149,1761119431892,-209.77,0.00030297,2]
[392045150,1761119431901,-241.0,0.00030387,7]
[392045151,1761119431911,-239.0,0.0003041,7]
[392045152,1761119431920,-239.0,0.00030411,2]
[392045153,1761119431929,-239.0,0.00030444,2]
[392045154,1761119431939,-162.41386365,0.000306,7]
[392045155,1761119431947,-150.0,0.000306,7]
[392045156,1761119431957,-240.0,0.0003088,2]
[392045157,1761119431966,-239.0,0.00030956,7]
[392045158,1761119431975,-241.0,0.00030968,2]
[392045159,1761119431984,-239.0,0.00031079,7]
[392045160,1761119431995,-239.0,0.00031123,2]
[392045161,1761119432004,-209.77,0.00031163,2]
[392045162,1761119432014,-240.0,0.00031195,7]
[392045163,1761119432024,-1587.0,0.00031224,2]
[392045164,1761119432033,-1311.0,0.00031224,2]
[392045166,1761119432043,-605.0,0.00031224,2]
[392045168,1761119432052,-831.0,0.00031224,2]
[392045170,1761119432062,-150.0,0.00031224,2]
[392045172,1761119432071,-254.981,0.00031224,2]
[392045174,1761119432081,-194.14,0.0003133,120]
[392045176,1761119432090,-666.0,0.0003133,3]
[392045178,1761119432099,-197.82,0.0003133,2]
[392045180,1761119432109,-267.86,0.0003133,30]
[392045182,1761119432121,-239.0,0.0003147,2]
[392045184,1761119432133,-239.0,0.0003157,2]
[392045186,1761119432142,-407.81264626,0.0003159,2]
[392045190,1761119432151,-157.34179312,0.00031687,7]
[392045193,1761119432163,-3435.2669868,0.0003169,2]
[392045196,1761119432172,-5972.1770014,0.0003169,2]
[392045198,1761119432182,-19821.93588757,0.0003169,2]
[392045200,1761119432196,-627.62514,0.0003169,2]
[392045202,1761119432207,-1044.15393787,0.0003169,2]
[392045204,1761119432218,-1000.0,0.0003169,2]
[392045206,1761119432229,-872.31859999,0.0003169,2]
[392045208,1761119432239,-1203.444,0.0003169,2]
[392045215,1761119432288,-15203.39785937,0.0003169,2]
[392045217,1761119432298,-749.2499713,0.0003169,2]
[392045219,1761119432307,-3151.859524,0.0003169,2]
[392045221,1761119432316,-239.0,0.00031699,2]
[392045223,1761119432327,-239.0,0.00031729,2]
[392045225,1761119432336,-6622.3695,0.000319,2]
[392045227,1761119432345,-239.0,0.00031916,2]
[392045229,1761119432354,-240.0,0.00031925,2]
[392045231,1761119432364,-239.0,0.00031925,7]
[392045233,1761119432373,-179.31667995,0.00032,120]
[392045235,1761119432382,-220.81410632,0.00032,120]
[392045237,1761119432392,-176.83312215,0.00032,120]
[392045239,1761119432401,-197.64581887,0.00032,120]
[392045241,1761119432410,-165.2342622,0.00032,120]
[392045243,1761119432420,-7062.85766524,0.00032,120]
[392045245,1761119432429,-172.09471183,0.00032,120]
[392045247,1761119432438,-164.22574656,0.00032,120]
[392045249,1761119432448,-501.24178829,0.00032,5]
[392045250,1761119432457,-1000.0,0.00032,2]
[392045251,1761119432467,-1000.0,0.00032,2]
[392045252,1761119432476,-1000.0,0.00032,2]
[392045253,1761119432485,-1000.0,0.00032,2]
[392045254,1761119432494,-209.77,0.00032029,2]
[392045255,1761119432504,-239.0,0.00032092,7]
[392045256,1761119432523,-150.0,0.00032165,2]
[392045257,1761119432533,-1000.0,0.00032165,2]
[392045258,1761119432543,-239.0,0.00032168,7]
[392045259,1761119432552,-239.0,0.00032215,2]
[392045261,1761119432562,-153.0,0.00032413,30]
[392045263,1761119432571,-500.0,0.00032488,2]
[392045265,1761119432580,-500.0,0.00032488,2]
[392045267,1761119432590,-500.0,0.00032488,2]
[392045269,1761119432599,-500.0,0.00032488,2]
[392045271,1761119432608,-500.0,0.00032488,2]
[392045273,1761119432617,-500.0,0.00032488,2]
[392045275,1761119432627,-500.0,0.00032488,2]
[392045277,1761119432636,-500.0,0.00032488,2]
[392045279,1761119432646,-500.0,0.00032488,2]
[392045281,1761119432655,-500.0,0.00032488,2]
[392045283,1761119432664,-500.0,0.00032488,2]
[392045285,1761119432674,-500.0,0.00032488,2]
[392045287,1761119432683,-500.0,0.00032488,2]
[392045290,1761119432693,-500.0,0.00032488,2]
[392045291,1761119432702,-500.0,0.00032488,2]
[392045293,1761119432712,-500.0,0.00032488,2]
[392045295,1761119432721,-500.0,0.00032488,2]
[392045297,1761119432730,-500.0,0.00032488,2]
[392045299,1761119432740,-500.0,0.00032488,2]
[392045302,1761119432750,-500.0,0.00032488,2]
[392045303,1761119432760,-500.0,0.00032488,2]
[392045306,1761119432769,-500.0,0.00032488,2]
[392045308,1761119432779,-500.0,0.00032488,2]
[392045310,1761119432788,-500.0,0.00032488,2]
[392045312,1761119432798,-500.0,0.00032488,2]
[392045314,1761119432807,-500.0,0.00032488,2]
[392045316,1761119432816,-500.0,0.00032488,2]
[392045318,1761119432825,-390.75366514,0.00032488,2]
[392045320,1761119432834,-500.0,0.00032488,2]
[392045322,1761119432844,-500.0,0.00032488,2]
[392045324,1761119432853,-500.0,0.00032488,2]
[392045326,1761119432862,-300.0,0.00032488,2]
[392045328,1761119432872,-500.0,0.00032488,2]
[392045330,1761119432882,-500.0,0.00032488,2]
[392045332,1761119432892,-376.978419,0.00032489,30]
[392045334,1761119432901,-376.978419,0.00032489,30]
[392045336,1761119432911,-376.978419,0.00032489,30]
[392045338,1761119432920,-376.978419,0.00032489,30]
[392045340,1761119432931,-725.63053889,0.00032489,2]
[392045342,1761119432944,-41.78946111,0.00032489,2]
[392045344,1761119432953,-585.244693,0.00032489,2]
[392045347,1761119432964,-110.855307,0.00032489,2]
[392045348,1761119432973,-475.34,0.00032489,2]
[392045351,1761119432983,-696.1,0.00032489,2]
[392045353,1761119432992,-475.34,0.00032489,2]
[392045354,1761119433003,-475.34,0.00032489,2]
[392045356,1761119433012,-414.60308388,0.00032489,2]
[392045359,1761119433024,-281.49691612,0.00032489,2]
[392045361,1761119433034,-475.34,0.00032489,2]
[392045363,1761119433043,-128.66936529,0.00032489,2]
[392045365,1761119433055,-326.03172292,0.00032489,2]
[392045377,1761119433166,-241.39891179,0.00032489,2]
[392045379,1761119433176,-382.84792649,0.00032489,2]
[392045381,1761119433187,-313.25207351,0.00032489,2]
[392045383,1761119433197,-109.46457818,0.00032489,2]
[392045450,1761119437517,-564.1761,0.00031224,2]
[392045451,1761119437722,-1983.8239,0.00031224,2]
[392045452,1761119437732,-365.87542182,0.00032489,2]
[392045453,1761119437742,-696.1,0.00032489,2]
[392045454,1761119437755,-475.34,0.00032489,2]
[392045455,1761119437765,-552.60526783,0.00032489,2]
[392045456,1761119437780,-143.49473217,0.00032489,2]
[392045457,1761119437789,-475.34,0.00032489,2]
[392045458,1761119437799,-475.34,0.00032489,2]
[392045460,1761119437808,-696.1,0.00032489,2]
[392045462,1761119437817,-696.1,0.00032489,2]
[392045464,1761119437827,-475.34,0.00032489,2]
[392045466,1761119437837,-696.1,0.00032489,2]
[392045468,1761119437846,-475.34,0.00032489,2]
[392045470,1761119437855,-696.1,0.00032489,2]
[392045472,1761119437864,-475.34,0.00032489,2]
[392045474,1761119437873,-696.1,0.00032489,2]
[392045476,1761119437883,-475.34,0.00032489,2]
[392045478,1761119437892,-696.1,0.00032489,2]
[392045480,1761119437902,-304.32,0.00032489,2]
[392045482,1761119437911,-696.1,0.00032489,2]
[392045485,1761119437921,-696.1,0.00032489,2]
[392045487,1761119437931,-500.0,0.000325,5]
[392045489,1761119437941,-500.0,0.000325,5]
[392045491,1761119437950,-500.0,0.000325,5]
[392045493,1761119437959,-500.0,0.000325,5]
[392045495,1761119437969,-500.0,0.000325,5]
[392045497,1761119437980,-240.0,0.00032617,2]
[392045499,1761119437990,-500.0,0.00032662,7]
[392045501,1761119438001,-500.0,0.00032662,7]
[392045503,1761119438011,-800.0,0.00032662,7]
[392045505,1761119438021,-153.0,0.00032735,30]
[392045507,1761119438032,-153.0,0.00032735,30]
[392045509,1761119438042,-153.0,0.00032735,30]
[392045511,1761119438052,-209.77,0.00032894,2]
[392045513,1761119438062,-250.0,0.00032932,5]
[392045515,1761119438072,-150.0,0.00032932,5]
[392045517,1761119438082,-500.0,0.00032932,2]
[392045519,1761119438091,-500.0,0.00032932,5]
[392045521,1761119438101,-376.978419,0.00032932,30]
[392045523,1761119438110,-376.978419,0.00032932,30]
[392045525,1761119438119,-376.978419,0.00032932,30]
[392045527,1761119438133,-376.978419,0.00032932,30]
[392045529,1761119438143,-150.0,0.00032932,2]
[392045531,1761119438153,-150.0,0.00032932,2]
[392045533,1761119438163,-150.0,0.00032932,5]
[392045535,1761119438174,-150.0,0.00032932,5]
[392045537,1761119438183,-215.94485222,0.00032932,5]
[392045539,1761119438193,-150.0,0.00032987,5]
[392045541,1761119438202,-500.0,0.00032987,2]
[392045543,1761119438213,-500.0,0.00032987,5]
[392045545,1761119438222,-179.31667995,0.00033,120]
[392045547,1761119438232,-2378.88500853,0.00033,2]
[392045549,1761119438242,-165.2342622,0.00033,120]
[392045551,1761119438254,-7062.85766524,0.00033,120]
[392045553,1761119438264,-271.2142661,0.00033042,5]
[392045555,1761119438274,-500.0,0.00033042,2]
[392045557,1761119438284,-500.0,0.00033042,5]
[392045559,1761119438294,-400.0,0.00033096,2]
[392045561,1761119438303,-500.0,0.00033096,5]
[392045563,1761119438313,-500.0,0.00033151,5]
[392045565,1761119438323,-240.76,0.00033165,2]
[392045567,1761119438333,-500.0,0.00033206,5]
[392045569,1761119438343,-248.42580472,0.00033261,5]
[392045571,1761119438353,-1244.0,0.00033428,2]
[392045573,1761119438363,-217.0967094,0.00033433,2]
[392045575,1761119438374,-3002.67002,0.00033433,2]
[392045577,1761119438384,-189.34,0.00033448,7]
[392045579,1761119438394,-3699.36032347,0.00033476,2]
[392045581,1761119438409,-686.48858205,0.00033476,2]
[392045583,1761119438419,-6668.97316895,0.00033481,2]
[392045586,1761119438433,-36008.590824,0.00033481,2]
[392045588,1761119438444,-1251.33867206,0.00033481,2]
[392045590,1761119438459,-84276.98442576,0.00033481,2]
[392045592,1761119438470,-500.0,0.00033484,7]
[392045594,1761119438480,-800.0,0.00033484,7]
[392045596,1761119438491,-1964.79504507,0.0003349,2]
[392045599,1761119438503,-18338.93700274,0.00033491,2]
[392045601,1761119438515,-402.52083682,0.00033491,2]
[392045602,1761119438527,-9473.8953164,0.00033491,2]
[392045604,1761119438543,-2156.88,0.00033491,2]
[392045606,1761119438555,-13253.01934363,0.00033491,2]
[392045607,1761119438566,-498.98998669,0.00033491,2]
[392045608,1761119438579,-2340.0,0.00033491,2]
[392045609,1761119438591,-277.52615549,0.00033491,2]
[392045612,1761119439600,-150.0,0.00033394,3]
[392045613,1761119439609,-1554.41884933,0.00033491,2]
[392045614,1761119439703,-4979.76509798,0.00033491,2]
[392045615,1761119439743,-4645.5925936,0.00033491,2]
[392045616,1761119439827,-695.42907123,0.00033491,2]
[392045621,1761119442723,-250.0,0.00031224,2]
[392045623,1761119442733,-29.1476,0.00032487,2]
[392045626,1761119442931,-470.8524,0.00032487,2]
[392045627,1761119442942,-258.44373373,0.00032487,2]
[392045628,1761119442952,-261.12303913,0.00033491,2]
[392045634,1761119445732,-500.0,0.00032487,2]
[392045635,1761119445742,-54.10526754,0.00032487,2]
[392045636,1761119445753,-445.89473246,0.00032487,2]
[392045637,1761119445763,-500.0,0.00032487,2]
[392045638,1761119445773,-151.0,0.00032488,30]
[392045639,1761119445782,-81.52346655,0.00032488,30]
[392045640,1761119445793,-672.47536945,0.00032488,30]
[392045641,1761119445803,-431.80803053,0.000325,5]
[392045642,1761119446064,-302.2305957,0.00032487,2]
[392045643,1761119446074,-500.0,0.00032487,2]
[392045644,1761119446084,-500.0,0.00032487,2]
[392045645,1761119446093,-500.0,0.00032487,2]
[392045646,1761119446103,-500.0,0.00032487,2]
[392045647,1761119446112,-500.0,0.00032487,2]
[392045648,1761119446121,-500.0,0.00032487,2]
[392045649,1761119446134,-68.19196947,0.000325,5]
[392045650,1761119446143,-151.0,0.00032662,30]
[392045651,1761119446152,-405.32743483,0.00032662,30]
[392045654,1761119604514,-50000.0,0.00034288,33]
[392045655,1761119604564,-1663.88027001,0.00034288,120]
[392045656,1761119604613,-625.92413714,0.00034288,120]
[392045657,1761119604660,-236.01762702,0.00034288,120]
[392045658,1761119604709,-1306.069427,0.00034288,120]
[392045659,1761119604759,-1380.960208,0.00034288,120]
[392045660,1761119604806,-1613.021271,0.00034288,120]
[392045661,1761119604855,-879.189763,0.00034288,120]
[392045662,1761119604905,-7716.287027,0.00034288,120]
[392045663,1761119604960,-255.888322,0.00034288,120]
[392045664,1761119605021,-500.0,0.00034288,120]
[392045665,1761119605073,-500.0,0.00034288,120]
[392045666,1761119605120,-500.0,0.00034288,120]
[392045667,1761119605168,-500.0,0.00034288,120]
[392045668,1761119605221,-500.0,0.00034288,120]
[392045669,1761119605269,-436.17475196,0.00034288,120]
[392045670,1761119605318,-502.72,0.00034288,120]
[392045671,1761119605367,-502.72,0.00034288,120]
[392045672,1761119605414,-502.72,0.00034288,120]
[392045673,1761119605462,-502.72,0.00034288,120]
[392045674,1761119605508,-502.72,0.00034288,120]
[392045675,1761119605557,-502.72,0.00034288,120]
[392045676,1761119605607,-502.72,0.00034288,120]
[392045677,1761119605655,-502.72,0.00034288,120]
[392045678,1761119605701,-502.72,0.00034288,120]
[392045679,1761119605749,-502.72,0.00034288,120]
[392045680,1761119605796,-502.72,0.00034288,120]
[392045681,1761119605842,-502.72,0.00034288,120]
[392045682,1761119605889,-502.72,0.00034288,120]
[392045683,1761119605937,-502.72,0.00034288,120]
[392045684,1761119605986,-502.72,0.00034288,120]
[392045685,1761119606035,-502.72,0.00034288,120]
[392045686,1761119606083,-502.72,0.00034288,120]
[392045687,1761119606132,-502.72,0.00034288,120]
[392045688,1761119606182,-502.72,0.00034288,120]
[392045689,1761119606232,-502.72,0.00034288,120]
[392045690,1761119606280,-502.72,0.00034288,120]
[392045691,1761119606329,-502.72,0.00034288,120]
[392045692,1761119606383,-502.72,0.00034288,120]
[392045693,1761119606435,-502.91338933,0.00034288,120]
[392045694,1761119606484,-500.0,0.00034288,120]
[392045695,1761119606532,-500.0,0.00034288,120]
[392045696,1761119606581,-500.0,0.00034288,120]
[392045697,1761119606631,-500.0,0.00034288,120]
[392045698,1761119606682,-500.0,0.00034288,120]
[392045699,1761119606730,-506.79812795,0.00034288,120]
[392045700,1761119606777,-500.0,0.00034288,120]
[392045701,1761119606826,-500.0,0.00034288,120]
[392045702,1761119606875,-537.04161328,0.00034288,120]
[392045703,1761119606920,-300.0,0.00034288,120]
[392045704,1761119606966,-300.0,0.00034288,120]
[392045705,1761119607012,-300.0,0.00034288,120]
[392045706,1761119607058,-300.0,0.00034288,120]
[392045707,1761119607104,-300.0,0.00034288,120]
[392045708,1761119607148,-300.0,0.00034288,120]
[392045709,1761119607195,-300.0,0.00034288,120]
[392045710,1761119607247,-300.0,0.00034288,120]
[392045711,1761119607299,-300.0,0.00034288,120]
[392045712,1761119607348,-300.0,0.00034288,120]
[392045713,1761119607402,-300.0,0.00034288,120]
[392045714,1761119607457,-300.0,0.00034288,120]
[392045715,1761119607510,-300.0,0.00034288,120]
[392045716,1761119607559,-300.0,0.00034288,120]
[392045717,1761119607607,-300.0,0.00034288,120]
[392045718,1761119607654,-300.0,0.00034288,120]
[392045719,1761119607700,-341.34869415,0.00034288,120]
[392045720,1761119607747,-400.0,0.00034288,120]
[392045721,1761119607796,-500.0,0.00034288,120]
[392045722,1761119607847,-523.33711117,0.00034288,120]
[392045723,1761119607895,-500.0,0.00034288,60]
[392045724,1761119607943,-626.9,0.00034288,120]
[392045725,1761119608159,-517.17870703,0.00034288,120]
[392045726,1761119608211,-500.0,0.00034288,120]
[392045727,1761119608265,-500.0,0.00034288,120]
[392045728,1761119608315,-409.8925451,0.00034288,120]
[392045729,1761119608365,-500.0,0.00034288,120]
[392045730,1761119608412,-509.34148134,0.00034288,120]
[392045731,1761119608459,-518.18063703,0.00034288,120]
[392045732,1761119608507,-503.15644083,0.00034288,120]
[392045733,1761119608556,-517.05347508,0.00034288,120]
[392045734,1761119608605,-500.0,0.00034288,120]
[392045735,1761119608652,-500.0,0.00034288,120]
[392045736,1761119608698,-390.0,0.00034288,120]
[392045737,1761119608743,-500.0,0.00034288,120]
[392045738,1761119608788,-158.18212684,0.00034288,120]
[392045739,1761119608832,-502.38927291,0.00034288,120]
[392045740,1761119608875,-501.26859739,0.00034288,120]
[392045741,1761119608918,-568.64,0.00034288,120]
[392045742,1761119608963,-500.0,0.00034288,120]
[392045743,1761119609006,-509.88581629,0.00034288,120]
[392045744,1761119609051,-504.12947822,0.00034288,120]
[392045745,1761119609096,-510.73009517,0.00034288,120]
[392045746,1761119609140,-507.39574301,0.00034288,120]
[392045747,1761119609189,-502.90822126,0.00034288,120]
[392045748,1761119609236,-502.12953968,0.00034288,120]
[392045749,1761119609285,-1840.87,0.00034288,120]
[392045750,1761119609332,-1840.87,0.00034288,120]
[392045751,1761119609388,-1840.87,0.00034288,120]
[392045752,1761119609436,-1840.87,0.00034288,120]
[392045753,1761119609483,-509.6423515,0.00034288,120]
[392045754,1761119609531,-1840.87,0.00034288,120]
[392045755,1761119609576,-1840.87,0.00034288,120]
[392045756,1761119609624,-1840.87,0.00034288,120]
[392045757,1761119609671,-500.0,0.00034288,120]
[392045758,1761119609722,-1840.87,0.00034288,120]
[392045759,1761119609768,-152.66225279,0.00034288,120]
[392045760,1761119609818,-1840.87,0.00034288,120]
[392045761,1761119609865,-1840.87,0.00034288,120]
[392045762,1761119609914,-1840.87,0.00034288,120]
[392045763,1761119609961,-1840.87,0.00034288,120]
[392045764,1761119610008,-1840.87,0.00034288,120]
[392045765,1761119610055,-503.12493708,0.00034288,120]
[392045766,1761119610102,-1840.87,0.00034288,120]
[392045767,1761119610149,-1840.87,0.00034288,120]
[392045768,1761119610197,-1185.05,0.00034288,120]
[392045769,1761119610244,-1185.05,0.00034288,120]
[392045770,1761119610293,-1840.87,0.00034288,120]
[392045771,1761119610341,-1185.05,0.00034288,120]
[392045772,1761119610389,-1840.87,0.00034288,120]
[392045773,1761119610437,-1185.05,0.00034288,120]
[392045774,1761119610484,-1840.87,0.00034288,120]
[392045775,1761119610533,-1185.05,0.00034288,120]
[392045776,1761119610581,-1840.87,0.00034288,120]
[392045777,1761119610628,-503.93446775,0.00034288,120]
[392045778,1761119610678,-1185.05,0.00034288,120]
[392045779,1761119610725,-1840.87,0.00034288,120]
[392045780,1761119610772,-1185.05,0.00034288,120]
[392045781,1761119610819,-1840.87,0.00034288,120]
[392045782,1761119610866,-1185.05,0.00034288,120]
[392045783,1761119610912,-1840.87,0.00034288,120]
[392045784,1761119610961,-1185.05,0.00034288,120]
[392045785,1761119611008,-1840.87,0.00034288,120]
[392045786,1761119611056,-1185.05,0.00034288,120]
[392045787,1761119611100,-1840.96389057,0.00034288,120]
[392045788,1761119611146,-1185.05,0.00034288,120]
[392045789,1761119611193,-1185.05,0.00034288,120]
[392045790,1761119611240,-500.0,0.00034288,120]
[392045791,1761119611289,-1185.05,0.00034288,120]
[392045792,1761119611338,-1185.05,0.00034288,120]
[392045793,1761119611384,-1185.05,0.00034288,120]
[392045794,1761119611431,-1185.05,0.00034288,120]
[392045795,1761119611477,-1185.05,0.00034288,120]
[392045796,1761119611523,-1185.05,0.00034288,120]
[392045797,1761119611568,-1185.05,0.00034288,120]
[392045798,1761119611612,-506.16146398,0.00034288,120]
[392045799,1761119611656,-1185.05,0.00034288,120]
[392045800,1761119611701,-1185.05,0.00034288,120]
[392045801,1761119611747,-1185.05,0.00034288,120]
[392045802,1761119611794,-500.0,0.00034288,120]
[392045803,1761119611838,-1185.05,0.00034288,120]
[392045804,1761119611881,-1185.13184871,0.00034288,120]
[392045805,1761119611923,-500.0,0.00034288,120]
[392045806,1761119611967,-500.0,0.00034288,120]
[392045807,1761119612010,-501.97228835,0.00034288,120]
[392045808,1761119612053,-501.95996661,0.00034288,120]
[392045809,1761119612098,-501.73802991,0.00034288,120]
[392045810,1761119612144,-502.12156821,0.00034288,120]
[392045811,1761119612194,-503.07825965,0.00034288,120]
[392045812,1761119612245,-500.0,0.00034288,120]
[392045813,1761119612293,-500.0,0.00034288,120]
[392045814,1761119612343,-500.0,0.00034288,120]
[392045815,1761119612392,-618.80919512,0.00034288,120]
[392045816,1761119612438,-502.70003921,0.00034288,120]
[392045817,1761119612483,-506.60356767,0.00034288,120]
[392045818,1761119612527,-500.0,0.00034288,120]
[392045819,1761119612573,-626.46460222,0.00034288,120]
[392045820,1761119612617,-503.01710578,0.00034288,120]
[392045821,1761119612661,-501.10811488,0.00034288,120]
[392045822,1761119612705,-500.0,0.00034288,120]
[392045823,1761119612750,-500.39604025,0.00034288,30]
[392045824,1761119612797,-500.0,0.00034288,120]
[392045825,1761119612844,-500.0,0.00034288,120]
[392045826,1761119612891,-500.0,0.00034288,120]
[392045827,1761119612938,-500.0,0.00034288,120]
[392045828,1761119612984,-500.0,0.00034288,120]
[392045829,1761119613159,-445.14723378,0.00034288,120]
[392045830,1761119613209,-500.0,0.00034288,120]
[392045831,1761119613258,-500.0,0.00034288,120]
[392045832,1761119613308,-500.0,0.00034288,120]
[392045833,1761119613356,-226.55,0.00034288,120]
[392045834,1761119613403,-477.91,0.00034288,120]
[392045835,1761119613447,-527.79801137,0.00034288,120]
[392045836,1761119613490,-500.0,0.00034288,120]
[392045837,1761119613532,-507.30692384,0.00034288,120]
[392045838,1761119613575,-500.0,0.00034288,120]
[392045839,1761119613617,-502.99980229,0.00034288,120]
[392045840,1761119613658,-503.83499522,0.00034288,120]
[392045841,1761119613701,-505.09039308,0.00034288,120]
[392045842,1761119613745,-500.0,0.00034288,120]
[392045843,1761119613789,-500.0,0.00034288,120]
[392045844,1761119613835,-512.10214033,0.00034288,120]
[392045845,1761119613881,-500.0,0.00034288,120]
[392045846,1761119613932,-507.39764129,0.00034288,120]
[392045847,1761119613985,-500.0,0.00034288,120]
[392045848,1761119614037,-502.97909191,0.00034288,120]
[392045849,1761119614081,-513.22430717,0.00034288,120]
[392045850,1761119614127,-500.0,0.00034288,120]
[392045851,1761119614172,-500.0,0.00034288,120]
[392045852,1761119614219,-500.0,0.00034288,120]
[392045853,1761119614264,-505.69306531,0.00034288,120]
[392045854,1761119614310,-500.0,0.00034288,120]
[392045855,1761119614356,-516.24,0.00034288,120]
[392045856,1761119614399,-501.08250642,0.00034288,120]
[392045857,1761119614443,-500.0,0.00034288,120]
[392045858,1761119614492,-412.24908463,0.00034288,120]
[392045859,1761119614535,-417.84095092,0.00034288,120]
[392045860,1761119614578,-500.0,0.00034288,120]
[392045861,1761119614622,-517.02252821,0.00034288,120]
[392045862,1761119614664,-500.0,0.00034288,120]
[392045863,1761119614708,-500.0,0.00034288,120]
[392045864,1761119614755,-504.89254814,0.00034288,120]
[392045865,1761119614800,-500.0,0.00034288,120]
[392045866,1761119614843,-591.36,0.00034288,120]
[392045867,1761119614887,-500.0,0.00034288,120]
[392045868,1761119614931,-589.50824909,0.00034288,120]